[Event "FIDE World School-ch O-13 2025"]
[Site "Vrnjacka Banja"]
[Date "2025.03.21"]
[Round "2.8"]
[White "Sonmez, Zeynep"]
[Black "Gaer, Sofiya Ig"]
[Result "*"]
[Annotator "NA RC"]
[ECO "D74"]
[WhiteElo "1526"]
[BlackElo "1733"]
[PlyCount "66"]
[EventDate "2025.03.19"]
[EventType "swiss"]
[EventCountry "SRB"]
[SourceTitle "playchess.com"]
[Source "ChessBase"]
[SourceQuality "1"]
[TimeControl "5400+30"]

1. d4 {[%emt 0:00:03]} Nf6 {[%emt 0:00:27]} 2. c4 {[%emt 0:00:12]} g6 {[%emt 0:00:09]} 3. Nf3 {[%emt 0:00:13]} Bg7 {[%emt 0:00:05]} 4. g3 {[%emt 0:00:17]} O-O {[%emt 0:00:08]} 5. Bg2 {[%emt 0:00:13]} d5 {[%emt 0:00:13]} 6. cxd5 {[%emt 0:00:47]} Nxd5 {[%emt 0:00:17]} 7. e4 {[%emt 0:00:46]} Nb6 {[%emt 0:00:06]} 8. O-O {[%emt 0:00:14]} Bg4 {[%emt 1:33:05]} 9. Be3 {[%emt 0:00:57]} Nc6 {[%emt 0:00:43]} 10. e5 {[%emt 0:01:02]} f6 {[%emt 0:10:53]} 11. exf6 {[%emt 0:01:39]} Bxf6 {[%emt 0:00:44]} 12. Nc3 {[%emt 0:04:35]} Bxd4 {[%emt 0:08:07]} 13. Qb3+ {[%emt 0:05:28]} Kg7 {[%emt 0:03:40]} 14. Nxd4 {[%emt 0:01:01]} Nxd4 {[%emt 0:00:08]} 15. Bxd4+ {[%emt 0:02:35]} Qxd4 {[%emt 0:00:18]} 16. Nb5 {[%emt 0:01:30]} Qd7 {[%emt 0:06:53]} 17. Bxb7 {[%emt 0:02:58]} Rab8 {[%emt 0:00:14]} 18. Bg2 {[%emt 0:03:08]} Be2 {[%emt 0:04:11]} 19. Nxa7 {[%emt 0:07:23]} Bxf1 {[%emt 0:06:51]} 20. Rxf1 {[%emt 0:00:54]} Rf6 {[%emt 0:00:14]} 21. Qc2 {[%emt 0:01:29]} c5 {[%emt 0:00:45]} 22. Nc6 {[%emt 0:03:10]} Rxc6 {[%emt 0:00:29]} 23. Bxc6 {[%emt 0:00:08]} Qxc6 {[%emt 0:00:04]} 24. Re1 {[%emt 0:00:18]} Nd5 {[%emt 0:00:59]} 25. Qe4 {[%emt 0:00:33]} Qd6 {[%emt 0:02:30]} 26. b3 {[%emt 0:00:47]} Rb4 {[%emt 0:54:17]} 27. Qc2 {[%emt 0:00:10]} Rd4 {[%emt 0:01:03]} 28. Rc1 {[%emt 0:01:21]} Nb4 {[%emt 0:00:24]} 29. Qxc5 {[%emt 0:00:28]} Qxc5 {[%emt 0:00:19]} 30. Rxc5 {[%emt 0:00:09]} Nxa2 {[%emt 0:00:06]} 31. Rc7 {[%emt 0:00:32]} Kf6 {[%emt 0:00:11]} 32. Kg2 {[%emt 0:00:12]} Rb4 {[%emt 0:00:08]} 33. Rc2 {[%emt 0:00:08]} Rxb3 {[%emt 0:00:38]} *